Cogmind - Beta 9.6 @@@ ROGUE MODE // 2020.05.10 @ 00:07:31 Player: Jelly Result: Self-destructed Performance ------------- Evolutions (1) 500 Regions Visited (3) 600 Robots Destroyed (39) 195 Value Destroyed (1096) 1096 Prototype IDs (1) 20 Alien Tech Used (0) 0 Bonus (40) 40 TOTAL SCORE: 2451 Bonus ------- High Alert Combat Kills 40 Cogmind --------- Core Integrity 184/400 Matter 273/300 Energy 213/250 System Corruption 1% Temperature Cool (54) Movement Walking (150) Ox1 Location -9/Storage Parts ------- > --- POWER (1) -------- Ion Engine > --- PROPULSION (3) --- Aluminum Leg > --- UTILITY (3) ------ Medium Storage Unit Visual Processing Unit Improved Signal Interpreter > --- WEAPON (2) ------- Light EM Pulse Cannon Heavy Assault Rifle > --- INVENTORY (8) ---- Ion Engine Ion Engine Light Treads Heat Sink Improved Heat Sink Heavy Assault Rifle Heavy Assault Rifle Flail Peak State ------------ > --- POWER ------------ Ion Engine > --- PROPULSION ------- Aluminum Leg Aluminum Leg Aluminum Leg > --- UTILITY ---------- Improved Heat Sink Medium Storage Unit Improved Signal Interpreter > --- WEAPON ----------- Light EM Pulse Cannon Improved Assault Rifle > --- INVENTORY -------- Ion Engine Ion Engine Heat Sink Beam Rifle Light Assault Rifle Heavy Assault Rifle Flail [Rating: 16] Favorites ----------- Power Ion Engine Engine Ion Engine Power Core Light Nuclear Core Propulsion Aluminum Leg Leg Aluminum Leg Utility Medium Storage Unit Device Improved Heat Sink Storage Medium Storage Unit Processor Improved Signal Interpreter Protection Light Armor Plating Weapon Assault Rifle Energy Gun EM Pulse Gun Energy Cannon Light EM Pulse Cannon Ballistic Gun Assault Rifle Build | -11 -10 -9 -9 ------- Run | Scr Mat Mat Sto Slots Evolved 2 | . . 2 . Power . | . . . . Propulsion 1 | . . 1 . Utility 1 | . . 1 . Weapon . | . . . . Parts Attached 31 | 6 7 16 2 Power 5 | 1 1 3 . Engine 4 | 1 . 3 . Core 1 | . 1 . . Reactor . | . . . . Propulsion 10 | 2 3 5 . Treads . | . . . . Leg 10 | 2 3 5 . Wheel . | . . . . Hover . | . . . . Flight . | . . . . Utility 6 | 1 2 3 . Device 1 | . 1 . . Storage 2 | 1 1 . . Processor 2 | . . 2 . Hackware . | . . . . Protection 1 | . . 1 . Artifact . | . . . . Weapon 10 | 2 1 5 2 Energy Gun 3 | . 1 1 1 Energy Cannon 2 | . . 2 . Ballistic Gun 5 | 2 . 2 1 Ballistic Cannon . | . . . . Launcher . | . . . . Special Weapon . | . . . . Impact Weapon . | . . . . Slashing Weapon . | . . . . Piercing Weapon . | . . . . Special Melee Weapon . | . . . . Unidentified Prototypes 1 | . . 1 . Parts Lost 5 | . . 2 3 Power . | . . . . Propulsion 4 | . . 2 2 Utility . | . . . . Weapon 1 | . . . 1 Highest Loss Streak 3 | . . 2 3 Average Slot Usage (%) 93 | . 96 94 81 Engine 7 | . 3 11 11 Core 4 | . 10 . . Leg 26 | . 28 30 15 Device 6 | . 10 5 . Storage 12 | . 14 11 11 Processor 8 | . . 12 22 Protection 1 | . . 4 . Energy Gun 4 | . 9 . 2 Energy Cannon 6 | . . 10 11 Ballistic Gun 12 | . 18 8 8 Naked Turns . | . . . . Heaviest Build 23 | 13 18 23 20 Greatest Support 30 | 20 20 30 30 Greatest Overweight (x) 1 | 1 . . 1 Average Overweight (x) . | . . . . Largest Inventory Capacity 8 | 6 8 8 8 Average Capacity 7 | 5 6 8 8 Most Carried 8 | 4 6 8 8 Average Carried 6 | 1 5 6 7 Final Capacity 8 | 6 8 8 8 Final Carried 8 | 4 6 8 8 Class Distribution -------------------- 78% | Mutant 21% | Scavenger-Mutant Dominant Class ---------------- Mutant | -10/Materials Scavenger-Mutant | -9/Materials Mutant | -9/Storage Resources | -11 -10 -9 -9 ----------- Run | Scr Mat Mat Sto Matter Collected 746 | 204 282 244 16 Remotely . | . . . . Salvage Created 1427 | . 401 718 308 Parts 89 | . 30 48 11 Haulers Intercepted . | . . . . Recyclers Shooed . | . . . . Parts Field Recycled . | . . . . Retrieved Matter . | . . . . Parts Self-Destructed . | . . . . Prevented . | . . . . Kills | -11 -10 -9 -9 ------- Run | Scr Mat Mat Sto Combat Hostiles Destroyed 36 | . 12 18 6 Guns 18 | . 11 5 2 Cannons 10 | . . 8 2 AOE 7 | . 1 5 1 Classes Destroyed 7 | . 4 2 1 Builder 1 | . . 1 . Mechanic 1 | . 1 . . Operator 1 | . 1 . . Swarmer 12 | . 6 6 . Grunt 16 | . 6 7 3 Duelist 1 | . . . 1 Sentry 7 | . . 5 2 Best Kill Streak 5 | . 4 5 3 Combat Bots Only 4 | . 3 4 3 Max Kills in Single Turn 3 | . 2 3 1 Gunslinging 1 | . 1 . . Exploded 2 | . 1 2 1 Melee . | . . . . Uniques/NPCs Destroyed . | . . . . Combat | -11 -10 -9 -9 -------- Run | Scr Mat Mat Sto Damage Taken 1652 | . 572 734 346 Core 349 | . 133 112 104 Absorbed by Shields . | . . . . Core Remaining (%) 73 | 100 46 . . Volleys Fired 87 | . 37 35 15 Largest 2 | . 2 2 2 Hottest 112 | . 60 112 112 Shots Fired 174 | . 74 70 30 Gun 124 | . 74 35 15 Cannon 50 | . . 35 15 Launcher . | . . . . Special . | . . . . Kinetic 93 | . 52 31 10 Thermal 9 | . . 4 5 Explosive . | . . . . Electromagnetic 72 | . 22 35 15 Robot Hit Streak 15 | . 15 13 13 Robot Miss Streak 4 | . 4 3 3 Penetration Max . | . . . . Secondary Targets 1 | . 1 . . Max Gunslinging Chain 1 | . 1 . . Shots Hit Robots 115 | . 45 47 23 Core Hits 52 | . 20 24 8 Critical Hits . | . . . . Critical Kills . | . . . . Critical Parts Destroyed . | . . . . Melee Attacks . | . . . . Impact . | . . . . Slashing . | . . . . Piercing . | . . . . Sneak Attacks . | . . . . Combat Hostiles . | . . . . Follow-up Attacks . | . . . . Damage Inflicted 2036 | . 648 942 446 Guns 961 | . 539 262 160 Cannons 731 | . . 491 240 Explosions 344 | . 109 189 46 Melee . | . . . . Ramming . | . . . . Kinetic 625 | . 317 220 88 Thermal 458 | . 109 231 118 Explosive . | . . . . Electromagnetic 953 | . 222 491 240 Impact . | . . . . Slashing . | . . . . Piercing . | . . . . Highest Corruption 1 | . . . 1 Average Corruption 1 | . . . 1 Corruption Purged . | . . . . Effects 2 | . . . 2 Energy Discharges 1 | . . . 1 Targeting Errors 1 | . . . 1 Overload Shots . | . . . . Overflow Damage 4 | . . . 4 Projectiles . | . . . . Explosions 4 | . . . 4 Melee . | . . . . Knockbacks . | . . . . Impact . | . . . . Kinetic . | . . . . Secondary . | . . . . Self-Inflicted Damage 168 | . 35 88 45 Shots 5 | . 1 3 1 Rammed . | . . . . Targets Rammed . | . . . . Kicked . | . . . . Crushed . | . . . . Highest Temperature 207 | . 2 207 144 Average Temperature 63 | . 2 72 58 Received Heat Transfer 468 | . 159 198 111 Siege Activations . | . . . . Robots Corrupted 1 | . . . 1 Combat Hostiles 1 | . . . 1 Parts Fried 1 | . . . 1 Impact Corruptions . | . . . . Robots Melted . | . . . . Combat Hostiles . | . . . . Parts Melted 1 | . . . 1 Heat Transferred 646 | . 100 311 235 Parts Sabotaged . | . . . . Parts Stolen . | . . . . Parts Stripped . | . . . . Power Chain Reactions 6 | . 2 3 1 Missiles Intercepted . | . . . . Alert | -11 -10 -9 -9 ------- Run | Scr Mat Mat Sto Peak Influence 552 | . 315 552 335 Average Influence 216 | . 154 294 244 Maximum Alert Level 2 | . 1 2 1 Low Security (%) 48 | 100 70 31 14 Level 1 41 | . 29 42 85 Level 2 10 | . . 26 . Level 3 . | . . . . Level 4 . | . . . . Level 5 . | . . . . High Security . | . . . . Max Security . | . . . . Squads Dispatched 5 | . 2 2 1 Investigation . | . . . . Extermination . | . . . . Reinforcement 4 | . 2 2 . Assault . | . . . . Garrison 1 | . . . 1 Intercept . | . . . . Construction Impeded . | . . . . Haulers Reinforced . | . . . . Stealth | -11 -10 -9 -9 --------- Run | Scr Mat Mat Sto Distress Signals 5 | . 3 2 . Communications Jammed . | . . . . Distress Signals . | . . . . Times Spotted 55 | . 23 23 9 Peak Tracking Total 6 | . 4 6 4 Tactical Retreats 2 | . 2 . . Traps | -11 -10 -9 -9 ------- Run | Scr Mat Mat Sto Traps Triggered 2 | . 1 . 1 Indirectly . | . . . . Trap Hack Attempts . | . . . . Triggered . | . . . . Disarmed . | . . . . Reprogrammed . | . . . . Reused . | . . . . Traps Extracted . | . . . . Installed . | . . . . Triggered . | . . . . Machines | -11 -10 -9 -9 ---------- Run | Scr Mat Mat Sto Machines Disabled 1 | . 1 . . Max in Single Turn 1 | . 1 . . Machines Sabotaged . | . . . . Garrisons Compromised . | . . . . Overloaded Fab Kills . | . . . . Fab Network Shutdowns . | . . . . Hacking | -11 -10 -9 -9 --------- Run | Scr Mat Mat Sto Machines Accessed 2 | . . 2 . Terminals 1 | . . 1 . Fabricators . | . . . . Repair Stations . | . . . . Recycling Units . | . . . . Scanalyzers 1 | . . 1 . Garrison Access . | . . . . Total Hacks 4 | . . 4 . Successful 2 | . . 2 . Failed 2 | . . 2 . Catastrophic . | . . . . Database Lockouts . | . . . . Manual . | . . . . Terminals 2 | . . 2 . Fabricators . | . . . . Repair Stations . | . . . . Recycling Units . | . . . . Scanalyzers 2 | . . 2 . Garrison Access . | . . . . Terminal Hacks . | . . . . Fabricator Hacks . | . . . . Repair Station Hacks . | . . . . Recycling Unit Hacks . | . . . . Scanalyzer 2 | . . 2 . Insert Component 1 | . . 1 . Analyze 1 | . . 1 . Garrison Access Hacks . | . . . . Unauthorized Hacks . | . . . . Terminals . | . . . . Fabricators . | . . . . Repair Stations . | . . . . Recycling Units . | . . . . Scanalyzers . | . . . . Garrison Access . | . . . . Data Cores Recovered . | . . . . Used . | . . . . Hacking Detections 1 | . . 1 . Full Trace Events . | . . . . Feedback Events . | . . . . Feedback Blocked . | . . . . Robot Schematics Acquired . | . . . . Robots Built . | . . . . Matter . | . . . . Time . | . . . . Total Robot Build Rating . | . . . . Part Schematics Acquired 1 | . . 1 . Parts Built . | . . . . Matter . | . . . . Time . | . . . . Total Part Build Rating . | . . . . Parts Repaired . | . . . . Time . | . . . . Parts Recycled . | . . . . Recycled Matter . | . . . . Retrieved Matter . | . . . . Retrieved Components . | . . . . Parts Scanalyzed 1 | . . 1 . Part Schematics Acquired 1 | . . 1 . Parts Damaged . | . . . . Bothacking | -11 -10 -9 -9 ------------ Run | Scr Mat Mat Sto Used RIF Installer . | . . . . Robots Hacked . | . . . . Non-combat . | . . . . Combat . | . . . . Robot Hacks Applied . | . . . . Relay Couplers Released . | . . . . Robots Rewired . | . . . . Allies Hacked . | . . . . Hacks Repelled . | . . . . Allies | -11 -10 -9 -9 -------- Run | Scr Mat Mat Sto Total Allies . | . . . . Largest Group . | . . . . Highest-Rated Group . | . . . . Highest-Rated Ally . | . . . . Total Orders . | . . . . Ally Attacks . | . . . . Total Damage . | . . . . Kills . | . . . . Allies Corrupted . | . . . . Allies Melted . | . . . . Intel | -11 -10 -9 -9 ------- Run | Scr Mat Mat Sto Robot Analysis Total . | . . . . Derelict Logs Recovered . | . . . . Drone Launches . | . . . . Drone Recoveries . | . . . . Exploration | -11 -10 -9 -9 ------------- Run | Scr Mat Mat Sto Turns Passed 1231 | 59 501 488 183 Spaces Moved 686 | 44 293 258 91 Core 11 | 11 . . . Treads . | . . . . Legs 675 | 33 293 258 91 Wheels . | . . . . Hover . | . . . . Flight . | . . . . Fastest Speed 50 | 50 120 120 120 Average Speed 122 | 105 120 120 142 Slowest Speed 150 | 120 120 120 150 Overloaded Moves . | . . . . Propulsion Burnouts . | . . . . Robots Hopped . | . . . . Cave-ins Triggered . | . . . . Exploration Rate (%) 25 | 3 45 29 25 Regions Visited 3 Branch Regions 1 Pre-discovered Areas . | . . . . Known Exits Taken 1 | . . 1 . Unknown Exits Taken 2 | 1 1 . . Scrap Searched . | . . . . Spaces Dug . | . . . . Terrain Destroyed 26 | . 6 16 4 Melee . | . . . . Projectile . | . . . . AOE 26 | . 6 16 4 Actions | -11 -10 -9 -9 --------- Run | Scr Mat Mat Sto Total 913 | 54 372 373 114 Wait 64 | . 23 38 3 Move 683 | 43 292 257 91 Hop . | . . . . Pick Up 21 | 5 4 10 2 Fast Attach 11 | 5 2 4 . Attach 12 | 1 1 8 2 Detach 7 | . 2 5 . Swap 8 | . 4 4 . Drop 20 | . 7 12 1 Fire 87 | . 37 35 15 Melee . | . . . . Ram . | . . . . Kick . | . . . . Crush . | . . . . Escape Stasis . | . . . . Rewire . | . . . . Trap . | . . . . Miscellaneous . | . . . . Route ------- -11/Scrapyard -10/Materials -9/Materials -9/Storage History --------- Turn | Location | Event 5 | -11/Scrapyard | Discovered new exit (range 16) 60 | -11/Scrapyard | Entered Materials 303 | -10/Materials | Build established: Mutant 448 | -10/Materials | Core integrity fell below 50% 543 | -10/Materials | Discovered new exit (range 16) 561 | -10/Materials | Entered another Materials area 561 | -9/Materials | Evolved 2 slots: Propulsion x1, Utility x1 966 | -9/Materials | Discovered new exit (range 16) 1048 | -9/Materials | Identified exit to Storage 1049 | -9/Materials | Entered Storage 1127 | -9/Storage | Lost 3 parts (2n1w) 1224 | -9/Storage | Garrison activated, responded to threat 1226 | -9/Storage | Core integrity fell below 50% 1232 | -9/Storage | Self-destructed Last Messages --------------- 01154_ Triggered Shock Trap. 01154_ The floor emits a surge of raw power. 01154_ System corrupted (+1). 01174_ System corrupted: Energy discharge (-55). 01174_ K-01 Serf collects debris. 01202_ G-34 Mercenary destroyed. 01205_ U-05 Engineer builds a Door. 01207_ R-06 Scavenger collects Heat Sink. 01211_ R-06 Scavenger collects Ion Engine. 01214_ K-01 Serf cleans the Compression Vault. 01218_ System corrupted: Lgt. EM Pulse Cannon targeting data glitched. 01218_ K-01 Serf cleans the Compression Vault. 01219_ Y-45 Defender misfires. 01222_ K-01 Serf cleans the Compression Vault. 01222_ R-06 Scavenger collects Aluminum Leg. 01224_ Y-45 Defender calls for garrison reinforcements. 01224_ ALERT: Activating Garrison Access S001. 01227_ K-01 Serf cleans the Compression Vault. 01228_ Y-45 Defender system terminally corrupted. [Achievement: Power Corrupts] Map ----- +----------------------------------------------------+ | | | | | | | | | | | | | | | ??????????????????????????????????????????? | | ??????????????????????????????????????????? | | ??????????????????????????????????????????? | | ??????????????????????????????????????????? | | ??????????????????????????????????????????? | | ??????????????????????????????????????????? | | ??????????????????????????????????????????? | | ??????????????????????????????????????????? | | ??????????????????????????????????????????? | | ??????????????????????????????????????????? | | ??????????????????????????????????????????? | | ??????????????########????????????????????? | | ??????????????# #????????????????????? | | ?????????????## ^^ #????????????????????? | | ?????????????# """ #????????????????????? | | ??????????????# """ #????????????????????? | | ??????????????# """ #????????????????????? | | ???????????????? % ?????????????????????? | | ?????????????????#@##### # #?????????? | | ??????????########= % + """ ??????????? | | ??????????# # #####/# """ ??????????? | | ??????????# #%# #????????????????? | | ??????????# + + #????????????????? | | ??????????# # # #????????????????? | | ??????????# # #?? #????????????????? | | ??????????# # #???? #????????????????? | | ??????????#+###### #??????????????????????? | | ??????????# #????# #??????????????????????? | | ??????????# #?####+#??????????????????????? | | ??????????# #? #??????????????????????? | | ????#?????# # #??????????????????????? | | ????# ##### # #??????????????????????? | | ????# + #??????????????????????? | | ????#### # #??????????????????????? | | ???????# # #??????????????????????? | | ???????# #?######??????????????????????? | | ???????# ^^ #?????????????????????????????? | | ???????# #?????????????????????????????? | | ?#####?# #?????????????????????????????? | | # # #?????????????????????????????? | | # # #????########?????????????????? | | # + #????# #?????????????????? | | # # ###### """"#?????????????????? | +----------------------------------------------------+ Best States ------------- Heat Dissipation 42 Energy Generation 14 Energy Capacity 250 Matter Stores 300 Matter Capacity 300 Sight Range 18 Terrain Scan Density 10 Armor Coverage 150 Evasion (%) 40 Item Schematics ----------------- Imp. Heat Sink | -9/Materials | Scanalyzed Robot Schematics ------------------ None Fabricated ------------ Nothing Alien Tech Used ----------------- None Achievements -------------- Power Corrupts Challenges ------------ None Game ------ Seed LightPortableCloak Manual? 0 Play Time 00:21:12 Cumulative 3.5 hours Start 2020.05.09 @ 23:39:04 End 2020.05.10 @ 00:07:31 Sessions 3 Manual Loads 0 Difficulty Rogue Special Mode None Game No. 6 Rogue 6 Adventurer 0 Explorer 0 Win Type - Total 0 Types 0/0/0/0/0/0/0 Lore% 7 Gallery% 7 Achievement% 7 Wizard Run 0 Options --------- ASCII 0 Keyboard 1 Movement Numpad Keybinds 0 Fullscreen 1 Font 18/X11 Map View 76x50 Tactical HUD 1 Map Filters NONE Filters NONE Steam 1 RUN: 21018212-c69d-462b-9036-561f7af00603